bitfinex/quotes_BTCUSD_20250903
["timestamp","ask_amount","ask_price","bid_price","bid_amount"]
[1756912931193,0.002,112320.0,112310.0,0.18330853]
[1756912932085,0.001,112320.0,112310.0,0.18330853]
[1756912932289,0.002,112320.0,112310.0,0.81431528]
[1756912932928,0.001,112320.0,112310.0,0.81431528]
[1756912933791,0.002,112320.0,112310.0,0.18330853]
[1756912934049,0.18111267,112320.0,112310.0,0.00204]
[1756912934270,0.17807853,112310.0,112300.0,0.35568137]
[1756912934491,0.18012853,112310.0,112300.0,0.15082037]
[1756912934706,0.18012853,112310.0,112300.0,0.15287037]
[1756912935138,0.18012853,112310.0,112300.0,0.33405476]
[1756912935391,0.18012853,112310.0,112300.0,0.33096476]
[1756912935790,0.18012853,112310.0,112300.0,0.33405476]
[1756912936906,0.18012853,112310.0,112300.0,0.33505476]
[1756912937335,0.18012853,112310.0,112300.0,0.18437476]
[1756912937582,0.18012853,112310.0,112300.0,0.33505476]
[1756912938001,0.18012853,112310.0,112300.0,0.18128476]
[1756912938207,0.96270942,112320.0,112310.0,0.18361847]
[1756912939942,0.96370942,112320.0,112310.0,0.18361847]
[1756912940371,0.96470942,112320.0,112310.0,0.18361847]
[1756912941647,1.39662541,112320.0,112310.0,0.18361847]
[1756912941893,2.13570713,112320.0,112310.0,0.18361847]
[1756912942325,1.53147387,112320.0,112310.0,0.18361847]
[1756912943596,1.84666222,112320.0,112310.0,0.18361847]
[1756912944449,1.69598222,112320.0,112310.0,0.18361847]
[1756912944649,0.70921215,112320.0,112310.0,0.18361847]
[1756912944859,1.80608725,112320.0,112310.0,0.18361847]
[1756912945471,1.65540725,112320.0,112310.0,0.18361847]
[1756912945683,1.30568621,112320.0,112310.0,0.18875847]
[1756912945897,1.77878376,112320.0,112310.0,0.18875847]
[1756912946126,1.77878376,112320.0,112310.0,0.18361847]
[1756912948704,1.62801472,112320.0,112310.0,0.18361847]
[1756912948908,1.77671472,112320.0,112310.0,0.18875847]
[1756912949987,0.17807853,112310.0,112300.0,0.00014037]
[1756912950196,0.17815784,112260.0,112250.0,0.023868]
[1756912950431,0.17815784,112260.0,112250.0,0.02638765]
[1756912950643,1.12435294,112260.0,112250.0,0.02638765]
[1756912951257,0.65125539,112260.0,112250.0,0.02638765]
[1756912951464,0.65125539,112260.0,112250.0,0.02838765]
[1756912952118,0.65125539,112260.0,112250.0,0.20656136]
[1756912952533,0.65125539,112260.0,112250.0,0.02838765]
[1756912953206,0.65125539,112260.0,112250.0,0.02938765]
[1756912953207,0.68084274,112260.0,112250.0,0.02938765]
[1756912953625,0.68950924,112260.0,112250.0,0.02938765]
[1756912954057,0.68950924,112260.0,112250.0,0.02424765]
[1756912954058,1.16458679,112260.0,112250.0,0.02424765]
[1756912954214,1.13499944,112260.0,112250.0,0.02424765]
[1756912954440,1.13499944,112260.0,112250.0,0.02938765]
[1756912954819,1.13499944,112260.0,112250.0,0.02838765]
[1756912955022,1.13499944,112260.0,112250.0,0.02529765]
[1756912955279,1.13599944,112260.0,112250.0,0.02324765]
[1756912955965,1.22791543,112260.0,112250.0,0.02324765]
[1756912956179,1.23075543,112260.0,112250.0,0.02324765]
[1756912956318,1.22791543,112260.0,112250.0,0.02124765]
[1756912956739,1.23075543,112260.0,112250.0,0.02124765]
[1756912957314,1.24737536,112260.0,112250.0,0.02124765]
[1756912957759,1.33929135,112260.0,112250.0,0.02124765]
[1756912957979,1.7088787,112260.0,112250.0,0.02124765]
[1756912958196,2.23573623,112260.0,112250.0,0.02124765]
[1756912958613,2.25698388,112260.0,112250.0,0.02124765]
[1756912959070,2.40770388,112260.0,112250.0,0.02124765]
[1756912959290,2.40670388,112260.0,112250.0,0.02124765]
[1756912959488,2.40870388,112260.0,112250.0,0.02124765]
[1756912960106,2.40670388,112260.0,112250.0,0.02124765]
[1756912960308,2.41070388,112260.0,112250.0,0.02124765]
[1756912960513,2.40970388,112260.0,112250.0,0.02124765]
[1756912960740,2.25898388,112260.0,112250.0,0.02124765]
[1756912960942,2.41270388,112260.0,112250.0,0.02124765]
[1756912961366,2.4836427,112260.0,112250.0,0.02124765]
[1756912961576,3.85112286,112260.0,112250.0,1e-08]
[1756912961791,2.49815876,112260.0,112250.0,1e-08]
[1756912962193,2.38696227,112260.0,112250.0,1e-08]
[1756912962635,2.53768227,112260.0,112250.0,1e-08]
[1756912963220,2.38696227,112260.0,112250.0,1e-08]
[1756912963417,2.53768227,112260.0,112250.0,1e-08]
[1756912963822,2.49053694,112260.0,112250.0,1e-08]
[1756912964105,2.50711578,112260.0,112250.0,1e-08]
[1756912964577,2.35639578,112260.0,112250.0,1e-08]
[1756912964769,2.50711578,112260.0,112250.0,1e-08]
[1756912965013,0.90751578,112260.0,112250.0,1e-08]
[1756912965216,2.47752843,112260.0,112250.0,1e-08]
[1756912965999,2.47756843,112260.0,112250.0,1e-08]
[1756912966736,1.85371088,112260.0,112250.0,1e-08]
[1756912966945,2.50808841,112260.0,112250.0,1e-08]
[1756912967428,2.52718255,112260.0,112250.0,1e-08]
[1756912969406,1.12436881,112250.0,112240.0,0.0004]
[1756912969565,1.55234905,112250.0,112240.0,0.0004]
[1756912969772,1.55431905,112250.0,112240.0,0.0004]
[1756912969973,1.55796905,112250.0,112240.0,0.0004]
[1756912970145,1.56418571,112250.0,112240.0,0.0004]
[1756912970348,1.56903571,112250.0,112240.0,0.0004]
[1756912970589,1.41542571,112250.0,112240.0,0.0004]
[1756912970814,1.56618571,112250.0,112240.0,0.0004]
[1756912971052,1.56718571,112250.0,112240.0,0.0004]
[1756912972343,1.41642571,112250.0,112240.0,0.0004]
[1756912972525,1.56718571,112250.0,112240.0,0.0004]
[1756912972753,1.41642571,112250.0,112240.0,0.0004]
[1756912972925,1.56718571,112250.0,112240.0,0.0004]
[1756912973791,1.41445571,112250.0,112240.0,0.00565]
[1756912974001,1.59573569,112250.0,112240.0,0.00565]
[1756912974206,1.59770569,112250.0,112240.0,0.00565]
[1756912975366,1.61683408,112250.0,112240.0,0.00565]
[1756912975580,1.61683408,112250.0,112240.0,0.0024]
[1756912975976,1.61683408,112250.0,112240.0,0.00565]
[1756912976607,1.61683408,112250.0,112240.0,0.0004]
[1756912977686,1.61684935,112250.0,112240.0,0.0004]
[1756912977890,1.6464367,112250.0,112240.0,0.0004]
[1756912978100,1.6492867,112250.0,112240.0,0.0004]
[1756912978352,1.6464367,112250.0,112240.0,0.0004]
[1756912979321,0.72418681,112250.0,112240.0,0.0004]
[1756912979525,1.67038191,112250.0,112240.0,0.0004]
[1756912980171,1.67038191,112250.0,112240.0,0.0024]
[1756912980521,1.66841191,112250.0,112240.0,0.00565]
[1756912981492,1.67038191,112250.0,112240.0,0.00565]
[1756912981696,1.67038191,112250.0,112240.0,0.0004]
[1756912981697,1.67039964,112250.0,112240.0,0.0004]
[1756912983056,1.51963964,112250.0,112240.0,0.0024]
[1756912983272,1.51766964,112250.0,112240.0,0.00565]
[1756912983442,1.66842964,112250.0,112240.0,0.00565]
[1756912983640,1.67039964,112250.0,112240.0,0.00565]
[1756912983826,1.67039964,112250.0,112240.0,0.0024]
[1756912984045,1.67039964,112250.0,112240.0,0.0004]
[1756912985275,1.70247375,112250.0,112240.0,0.0004]
[1756912985507,1.70247375,112250.0,112240.0,0.00565]
[1756912987365,1.67852854,112250.0,112240.0,0.00565]
[1756912987572,1.67852854,112250.0,112240.0,0.0004]
[1756912988270,1.68137854,112250.0,112240.0,0.0004]
[1756912988521,1.7294897,112250.0,112240.0,0.0004]
[1756912988763,2.20273226,112250.0,112240.0,0.0004]
[1756912988978,2.20273226,112250.0,112230.0,0.0004]
[1756912988979,1.59748224,112240.0,112230.0,0.0004]
[1756912989207,2.03613711,112240.0,112230.0,0.0004]
[1756912989418,2.0702094,112240.0,112230.0,0.0004]
[1756912989661,2.0730594,112240.0,112230.0,0.0004]
[1756912990287,2.0760594,112240.0,112230.0,0.0004]
[1756912990687,2.0780594,112240.0,112230.0,0.0004]
[1756912991102,2.39397518,112240.0,112230.0,0.0004]
[1756912994290,2.38594485,112240.0,112230.0,0.0004]
[1756912995032,2.41805714,112240.0,112230.0,0.0004]
[1756912995259,2.41520714,112240.0,112230.0,0.0004]
[1756912995460,2.38309485,112240.0,112230.0,0.0004]
[1756912996275,2.44857712,112240.0,112230.0,0.0004]
[1756912996477,2.42449516,112240.0,112230.0,0.0004]
[1756912996684,2.42449516,112240.0,112230.0,1e-08]
[1756912997035,2.42149516,112240.0,112230.0,1e-08]
[1756912997874,2.41949516,112240.0,112230.0,1e-08]
[1756912998128,2.42306819,112240.0,112230.0,1e-08]
[1756912998346,2.42706819,112240.0,112230.0,1e-08]
[1756912999047,2.42708575,112240.0,112230.0,1e-08]
[1756912999258,2.45114911,112240.0,112230.0,1e-08]
[1756913000322,2.45113325,112240.0,112230.0,1e-08]
[1756913000956,2.45113152,112240.0,112230.0,1e-08]
[1756913003035,2.44828152,112240.0,112230.0,1e-08]
[1756913003652,2.29569431,112240.0,112230.0,1e-08]
[1756913006439,2.26358202,112240.0,112230.0,1e-08]
[1756913007051,2.10997202,112240.0,112230.0,1e-08]
[1756913007303,2.26358202,112240.0,112230.0,1e-08]
[1756913008165,2.70048202,112240.0,112230.0,1e-08]
[1756913009661,2.66515204,112240.0,112230.0,0.00521001]
[1756913010110,2.51439204,112240.0,112230.0,0.00521001]
[1756913010313,2.66711204,112240.0,112230.0,1e-08]
[1756913010838,2.51635204,112240.0,112230.0,1e-08]
[1756913011045,2.66711204,112240.0,112230.0,1e-08]
[1756913011905,2.66996204,112240.0,112230.0,1e-08]
[1756913012119,2.70048202,112240.0,112230.0,1e-08]
[1756913012872,2.69763202,112240.0,112230.0,1e-08]
[1756913019296,2.72974431,112240.0,112230.0,1e-08]
[1756913020052,2.80353313,112240.0,112230.0,1e-08]
[1756913020251,2.77946977,112240.0,112230.0,1e-08]
[1756913020461,2.77946977,112240.0,112220.0,1e-08]
[1756913020462,0.17820547,112230.0,112220.0,1e-08]
[1756913020660,2.38298708,112230.0,112220.0,1e-08]
[1756913020866,2.43313378,112230.0,112220.0,1e-08]
[1756913021092,2.43670743,112230.0,112220.0,1e-08]
[1756913021356,2.43669148,112230.0,112220.0,1e-08]
[1756913021763,2.43769148,112230.0,112220.0,1e-08]
[1756913021991,2.44069148,112230.0,112220.0,1e-08]
[1756913022193,2.47925767,112230.0,112220.0,1e-08]
[1756913022397,2.62925767,112230.0,112220.0,1e-08]
[1756913022560,2.59269148,112230.0,112220.0,1e-08]
[1756913026341,0.17822135,112220.0,112210.0,1e-08]
[1756913026549,0.17825311,112200.0,112190.0,0.00326279]
[1756913026725,1.68756974,112200.0,112190.0,0.00326279]
[1756913026935,1.68478454,112200.0,112190.0,0.00539279]
[1756913027490,1.05332577,112200.0,112190.0,0.00539279]
[1756913027733,1.07002676,112200.0,112190.0,0.00539279]
[1756913027893,0.53001503,112200.0,112190.0,0.00039279]
[1756913028096,1.16194275,112200.0,112190.0,0.00039279]
[1756913028326,1.16194275,112200.0,112190.0,0.00355279]
[1756913028592,0.53001503,112200.0,112190.0,0.00355279]
[1756913029066,1.16194275,112200.0,112190.0,0.00455279]
[1756913029657,1.1915301,112200.0,112190.0,0.00455279]
[1756913030023,1.20048745,112200.0,112190.0,0.00455279]
[1756913030427,1.23100743,112200.0,112190.0,0.00455279]
[1756913030794,1.23200743,112200.0,112190.0,0.00455279]
[1756913031010,1.86608515,112200.0,112190.0,0.00139279]
[1756913031248,1.8754465,112200.0,112190.0,0.001]
[1756913031599,0.518269,112190.0,112180.0,0.00356]
[1756913031798,1.5533487,112190.0,112180.0,0.00356]
[1756913032170,1.58293605,112190.0,112180.0,0.00569]
[1756913032556,1.62362083,112190.0,112180.0,0.00569]
[1756913033261,1.47286083,112190.0,112180.0,0.00569]
[1756913033396,1.62362083,112190.0,112180.0,0.00669]
[1756913036617,1.64031029,112190.0,112180.0,0.00669]
[1756913036828,1.67608027,112190.0,112180.0,0.0014]
[1756913037039,1.6823392,112190.0,112180.0,0.0014]
[1756913037501,1.7015646,112190.0,112180.0,0.0014]
[1756913037724,1.7015646,112190.0,112180.0,0.0004]
[1756913037941,1.7035646,112190.0,112180.0,0.0004]
[1756913038167,1.71190932,112190.0,112180.0,0.0004]
[1756913038580,1.71290932,112190.0,112180.0,0.0004]
[1756913039206,1.0809816,112190.0,112180.0,0.0004]
[1756913039417,1.71290932,112190.0,112180.0,0.0004]
[1756913039958,1.71286932,112190.0,112180.0,0.0004]
[1756913041126,1.56214932,112190.0,112180.0,0.0004]
[1756913041336,1.71290932,112190.0,112180.0,0.0004]
[1756913043229,1.70765932,112190.0,112180.0,0.00253]
[1756913043616,1.96327934,112190.0,112180.0,0.00253]
[1756913043851,2.11618934,112190.0,112180.0,0.00253]
[1756913044459,2.11928934,112190.0,112180.0,0.00253]
[1756913045120,1.96542934,112190.0,112180.0,0.00253]
[1756913045323,2.11403934,112190.0,112180.0,0.00569]
[1756913045556,2.11403934,112190.0,112180.0,0.00253]
[1756913045913,2.11618934,112190.0,112180.0,0.00253]
[1756913046306,2.11928934,112190.0,112180.0,0.0004]
[1756913046504,2.14980932,112190.0,112180.0,0.0004]
[1756913046860,2.14980707,112190.0,112180.0,0.0004]
[1756913048084,2.14980707,112190.0,112180.0,0.00253]
[1756913048322,2.14980707,112190.0,112180.0,0.0004]
[1756913049355,2.17385945,112190.0,112180.0,0.0004]
[1756913050689,2.02309945,112190.0,112180.0,0.0004]
[1756913050883,2.01999945,112190.0,112180.0,0.00251]
[1756913051084,2.13808947,112190.0,112180.0,0.00251]
[1756913051345,2.14024947,112190.0,112180.0,0.00251]
[1756913051500,2.14321947,112190.0,112180.0,0.00251]
[1756913051709,2.14024947,112190.0,112180.0,0.00251]
[1756913051912,2.14321947,112190.0,112180.0,0.00251]
[1756913052130,2.14024947,112190.0,112180.0,0.00251]
[1756913052641,2.14321947,112190.0,112180.0,0.00251]
[1756913053599,2.11916709,112190.0,112180.0,0.00251]
[1756913054052,2.14300558,112190.0,112180.0,0.00251]
[1756913054447,2.14597558,112190.0,112180.0,0.00251]
[1756913054846,2.14597558,112190.0,112180.0,0.0004]
[1756913055214,2.14597558,112190.0,112180.0,0.00251]
[1756913056060,1.99521558,112190.0,112180.0,0.00251]
[1756913056260,2.17002796,112190.0,112180.0,0.00251]
[1756913058302,2.01629796,112190.0,112180.0,0.00251]
[1756913058503,2.13531061,112190.0,112180.0,0.00571]
[1756913058623,1.98455061,112190.0,112180.0,0.00571]
[1756913058842,1.67934224,112190.0,112180.0,0.00571]
[1756913059057,2.01099977,112190.0,112180.0,0.00571]
[1756913060173,1.37907205,112190.0,112180.0,0.00571]
[1756913060354,2.01099977,112190.0,112180.0,0.00571]
[1756913060565,1.86023977,112190.0,112180.0,0.00571]
[1756913060768,0.72524294,112190.0,112180.0,0.00571]
[1756913060964,0.41727846,112190.0,112180.0,0.18399489]
[1756913061174,0.75727846,112190.0,112180.0,0.18399489]
[1756913061578,0.740589,112190.0,112180.0,0.18399489]
[1756913062773,0.589829,112190.0,112180.0,0.00571]
[1756913063261,0.740589,112190.0,112180.0,0.00571]
[1756913063589,0.740589,112190.0,112180.0,0.00176]
[1756913064143,0.740589,112190.0,112180.0,0.00105]
[1756913065541,0.589829,112190.0,112180.0,0.00171]
[1756913065744,0.740549,112190.0,112180.0,0.00171]
[1756913066059,0.331989,112190.0,112180.0,0.17999489]
[1756913066270,0.181269,112190.0,112180.0,0.00171]
[1756913066464,0.331989,112190.0,112180.0,0.00171]
[1756913066884,0.331989,112190.0,112180.0,0.17999489]
[1756913068251,0.181269,112190.0,112180.0,0.17999489]
[1756913068575,0.15372,112190.0,112180.0,0.68082549]
[1756913068988,0.003,112190.0,112180.0,1.15485761]
[1756913069194,0.003,112190.0,112180.0,1.17579643]
[1756913069323,0.003,112190.0,112180.0,1.41843242]
[1756913069742,0.001,112190.0,112180.0,1.41843242]
[1756913069942,0.00046895,112200.0,112190.0,0.178269]
[1756913070151,0.00046895,112200.0,112190.0,0.65296112]
[1756913070363,0.00046895,112200.0,112190.0,0.65401112]
[1756913070946,0.17872206,112200.0,112190.0,0.68080733]
[1756913071152,0.18765378,112200.0,112190.0,0.02784621]
[1756913071830,0.18865378,112200.0,112190.0,0.02784621]
[1756913072537,0.33937378,112200.0,112190.0,0.20611521]
[1756913073151,0.33937378,112200.0,112190.0,0.02784621]
[1756913073353,0.33937378,112200.0,112190.0,0.20611521]
[1756913073697,0.17972206,112200.0,112190.0,0.68014733]
[1756913074133,0.17972206,112200.0,112190.0,0.20611521]
[1756913074344,0.17972206,112200.0,112190.0,0.68014733]
[1756913074726,0.17972206,112200.0,112190.0,0.20611521]
[1756913074921,0.00146895,112200.0,112190.0,0.68014733]
[1756913075289,0.17972206,112200.0,112190.0,0.20611521]
[1756913075489,0.17972206,112200.0,112190.0,0.68014733]
[1756913075799,0.17972206,112200.0,112190.0,0.50187833]
[1756913076007,0.17972206,112200.0,112190.0,0.68014733]
[1756913076396,0.17972206,112200.0,112190.0,0.50187833]
[1756913076658,0.17972206,112200.0,112190.0,0.68014733]
[1756913078471,0.00146895,112200.0,112190.0,0.68014733]
[1756913081020,0.17972206,112200.0,112190.0,0.20611521]
[1756913081235,0.17972206,112200.0,112190.0,0.68014733]
[1756913082291,0.18294206,112200.0,112190.0,0.68014733]
[1756913082504,0.00146895,112200.0,112190.0,0.68014733]
[1756913082729,0.00146895,112200.0,112190.0,0.20611521]
[1756913082968,0.00468895,112200.0,112190.0,0.68014733]
[1756913083180,0.00468895,112200.0,112190.0,0.20611521]
[1756913083372,0.00146895,112200.0,112190.0,0.68014733]
[1756913083675,0.00146895,112200.0,112190.0,0.68080733]
[1756913085236,0.00146895,112200.0,112190.0,0.70174615]
[1756913085644,0.00146895,112200.0,112190.0,0.22771403]
[1756913085787,0.00146895,112200.0,112190.0,0.70174615]
[1756913086397,0.00146895,112200.0,112190.0,0.22771403]
[1756913086599,0.00146895,112200.0,112190.0,0.70108615]
[1756913087466,0.00146895,112200.0,112190.0,0.70174615]
[1756913088286,0.00146895,112200.0,112190.0,0.70108615]
[1756913088490,0.17972206,112200.0,112190.0,0.37801403]
[1756913088700,0.18294206,112200.0,112190.0,0.85204615]
[1756913090062,0.18508206,112200.0,112190.0,0.22705403]
[1756913090322,0.18508206,112200.0,112190.0,0.82997733]
[1756913090830,0.18508206,112200.0,112190.0,0.83102733]
[1756913091886,0.00468895,112200.0,112190.0,0.83102733]
[1756913092142,0.00146895,112200.0,112190.0,0.83102733]
[1756913092793,0.00146895,112200.0,112190.0,0.85262615]
[1756913093031,0.00146895,112200.0,112190.0,1.48713426]
[1756913093254,0.00146895,112200.0,112190.0,0.53907002]
[1756913093482,0.00146895,112200.0,112190.0,1.01310214]
[1756913093687,0.00146895,112200.0,112190.0,0.53907002]
[1756913093908,0.00146895,112200.0,112190.0,1.01310214]
[1756913094431,0.00146895,112200.0,112190.0,0.53907002]
[1756913094659,0.00146895,112200.0,112190.0,1.01310214]
[1756913095338,0.00146895,112200.0,112190.0,0.53861002]
[1756913095550,0.00146895,112200.0,112190.0,1.01264214]
[1756913096165,0.00146895,112200.0,112190.0,1.01330214]
[1756913096370,0.00146895,112200.0,112190.0,1.01264214]
[1756913097527,0.00146895,112200.0,112190.0,1.01268214]
[1756913097943,0.00046895,112200.0,112190.0,1.01268214]
[1756913099293,0.00046895,112200.0,112190.0,1.01368214]
[1756913100405,0.00046895,112200.0,112190.0,0.38853002]
[1756913100612,0.00582895,112200.0,112190.0,1.01364214]
[1756913100797,0.00046895,112200.0,112190.0,1.01364214]
[1756913101362,0.00582895,112200.0,112190.0,0.89969733]
[1756913102274,0.18408206,112200.0,112190.0,0.20606521]
[1756913102448,0.18408206,112200.0,112190.0,0.35710521]
[1756913103135,0.18408206,112200.0,112190.0,0.83113733]
[1756913103594,0.00582895,112200.0,112190.0,0.83218733]
[1756913104764,0.00046895,112200.0,112190.0,0.83218733]
[1756913106021,0.00582895,112200.0,112190.0,0.35815521]
[1756913106228,0.00582895,112200.0,112190.0,0.83218733]
[1756913106446,0.00582895,112200.0,112190.0,0.83222733]
[1756913107317,0.00582895,112200.0,112190.0,0.35714521]
[1756913107520,0.00582895,112200.0,112190.0,0.83117733]
[1756913107898,0.00582895,112200.0,112190.0,0.83222733]
[1756913108105,0.00046895,112200.0,112190.0,0.83222733]
[1756913109468,0.00046895,112200.0,112190.0,0.35819521]
[1756913109773,0.00046895,112200.0,112190.0,0.83222733]
[1756913109975,0.00570895,112200.0,112190.0,0.83222733]
[1756913110377,0.00570895,112200.0,112190.0,0.83117733]
[1756913110497,0.00570895,112200.0,112190.0,0.83109733]
[1756913112186,0.00570895,112200.0,112190.0,0.68009733]
[1756913112401,0.00570895,112200.0,112190.0,0.83109733]
[1756913113238,0.00570895,112200.0,112190.0,0.68009733]
[1756913113444,0.00570895,112200.0,112190.0,0.83101733]
[1756913113655,0.00570895,112200.0,112190.0,0.68114733]
[1756913113848,0.00046895,112200.0,112190.0,0.83206733]
[1756913114765,0.00570895,112200.0,112190.0,0.83206733]
[1756913114915,0.18396206,112200.0,112190.0,0.83101733]
[1756913115890,0.18396206,112200.0,112190.0,0.83097733]
[1756913116765,0.65799418,112200.0,112190.0,0.02779621]
[1756913116980,0.74161761,112200.0,112190.0,0.17863621]
[1756913117192,1.70217701,112200.0,112190.0,0.02779621]
[1756913117569,1.70217701,112200.0,112190.0,0.001]
[1756913117570,0.90499277,112200.0,112190.0,0.001]
[1756913117780,1.85305701,112200.0,112190.0,0.001]
[1756913118578,1.82344572,112200.0,112190.0,0.001]
[1756913119051,0.79175805,112200.0,112190.0,0.001]
[1756913119262,1.26579017,112200.0,112190.0,0.001]
[1756913119469,0.76675805,112200.0,112190.0,0.001]
[1756913119651,0.61587805,112200.0,112190.0,0.001]
[1756913121320,1.08991017,112200.0,112190.0,0.001]
[1756913121533,1.18182616,112200.0,112190.0,0.001]
[1756913121748,1.65585828,112200.0,112190.0,0.001]
[1756913121963,1.74098955,112200.0,112190.0,0.001]
[1756913122941,1.68085828,112200.0,112190.0,0.001]
[1756913125662,1.36491685,112200.0,112190.0,0.001]
[1756913126291,0.73279404,112200.0,112190.0,0.001]
[1756913126496,1.36491685,112200.0,112190.0,0.001]
[1756913126708,0.73279404,112200.0,112190.0,0.001]
[1756913127122,1.36491685,112200.0,112190.0,0.001]
[1756913127307,0.80135404,112200.0,112190.0,0.001]
[1756913127562,1.34156086,112200.0,112190.0,0.001]
[1756913128220,2.03381494,112200.0,112190.0,0.001]
[1756913128423,2.06503823,112200.0,112190.0,0.001]
[1756913128594,2.08422593,112200.0,112190.0,0.001]
[1756913129095,2.07589971,112200.0,112190.0,0.001]
[1756913129295,2.1688157,112200.0,112190.0,0.001]
[1756913129768,2.17714105,112200.0,112190.0,0.001]
[1756913129946,0.51828489,112180.0,112170.0,0.00165092]
[1756913130151,1.3023677,112180.0,112170.0,0.00165092]
[1756913130367,1.3076077,112180.0,112170.0,0.00165092]
[1756913130660,1.39952369,112180.0,112170.0,0.00165092]
[1756913131293,1.39952369,112180.0,112170.0,0.00365092]
[1756913131737,1.39952369,112180.0,112170.0,0.00465092]
[1756913132228,1.39956369,112180.0,112170.0,0.00465092]
[1756913133628,1.49147968,112180.0,112170.0,0.00465092]
[1756913133836,1.55161095,112180.0,112170.0,0.00465092]
[1756913134669,1.57661095,112180.0,112170.0,0.00465092]
[1756913135091,1.54609097,112180.0,112170.0,0.00465092]
[1756913139098,1.57661095,112180.0,112170.0,0.00465092]
[1756913139892,1.60342059,112180.0,112170.0,0.00465092]
[1756913140509,0.7887778,112180.0,112170.0,0.00465092]
[1756913140839,1.39590061,112180.0,112170.0,0.00465092]
[1756913141052,1.54774061,112180.0,112170.0,0.00465092]
[1756913141259,0.9156178,112180.0,112170.0,0.00465092]
[1756913141436,1.54774061,112180.0,112170.0,0.00465092]
[1756913141871,1.39590061,112180.0,112170.0,0.00465092]
[1756913142064,1.54774061,112180.0,112170.0,0.00465092]
[1756913142275,1.56448828,112180.0,112170.0,0.00465092]
[1756913142804,1.58833828,112180.0,112170.0,0.00465092]
[1756913143019,1.61885826,112180.0,112170.0,0.00465092]
[1756913143327,0.98673545,112180.0,112170.0,0.00465092]
[1756913143522,1.61885826,112180.0,112170.0,0.00465092]
[1756913143726,0.17833259,112150.0,112140.0,0.02720964]
[1756913143907,1.12243549,112150.0,112140.0,0.0004]
[1756913144109,1.12456905,112150.0,112140.0,0.0004]
[1756913144378,1.09495776,112150.0,112140.0,0.0004]
[1756913144971,1.09542642,112150.0,112140.0,0.0004]
[1756913145171,1.09542642,112150.0,112140.0,0.0014]
[1756913146191,1.10422762,112150.0,112140.0,0.0014]
[1756913146401,1.10422762,112150.0,112140.0,0.0034]
[1756913146402,1.49768891,112150.0,112140.0,0.0034]
[1756913146605,1.46807762,112150.0,112140.0,0.0034]
[1756913146822,0.87936652,112150.0,112140.0,0.0034]
[1756913147032,1.48467145,112150.0,112140.0,0.0034]
[1756913147207,1.52872548,112150.0,112140.0,0.0024]
[1756913147346,0.90282346,112150.0,112140.0,0.0024]
[1756913147565,1.49446796,112150.0,112140.0,0.0004]
[1756913147780,0.85876943,112150.0,112140.0,0.0004]
[1756913148005,0.83515943,112150.0,112140.0,0.0014]
[1756913148205,0.8352381,112150.0,112140.0,0.0014]
[1756913148407,1.46736091,112150.0,112140.0,0.0014]
[1756913148819,1.46114145,112150.0,112140.0,0.0014]
[1756913149074,1.46735837,112150.0,112140.0,0.0014]
[1756913149277,1.46114145,112150.0,112140.0,0.0014]
[1756913149512,1.31503699,112150.0,112140.0,0.0014]
[1756913149627,1.46735699,112150.0,112140.0,0.0014]
[1756913150197,1.31503699,112150.0,112140.0,0.0014]
[1756913150397,1.46751699,112150.0,112140.0,0.0014]
[1756913150739,1.46130145,112150.0,112140.0,0.0014]
[1756913152569,0.83539046,112150.0,112140.0,0.0014]
[1756913152709,1.46751327,112150.0,112140.0,0.0014]
[1756913153320,1.46748502,112150.0,112140.0,0.0014]
[1756913155480,1.51709543,112150.0,112140.0,1e-08]
[1756913155690,1.54670672,112150.0,112140.0,1e-08]
[1756913155906,1.55068202,112150.0,112140.0,1e-08]
[1756913156601,1.55268202,112150.0,112140.0,1e-08]
[1756913156842,0.51834849,112140.0,112130.0,0.0004]
[1756913157082,1.50318886,112140.0,112130.0,0.0004]
[1756913157342,1.50810886,112140.0,112130.0,0.0004]
[1756913157585,0.87598605,112140.0,112130.0,0.0004]
[1756913157826,1.50810886,112140.0,112130.0,0.0004]
[1756913158077,1.50910886,112140.0,112130.0,0.0004]
[1756913158329,1.51532907,112140.0,112130.0,0.0004]
[1756913158749,1.50910886,112140.0,112130.0,0.0004]
[1756913160545,1.50913483,112140.0,112130.0,0.0004]
[1756913160767,0.62785603,112140.0,112130.0,0.00145]
[1756913160970,1.41217884,112140.0,112130.0,0.00145]
[1756913161180,1.41510884,112140.0,112130.0,0.00145]
[1756913161410,1.41709884,112140.0,112130.0,0.00145]
[1756913161610,1.41709884,112140.0,112130.0,0.0004]
[1756913161819,1.50901483,112140.0,112130.0,0.0004]
[1756913161981,1.41709884,112140.0,112130.0,0.00145]
[1756913162194,1.41709884,112140.0,112130.0,0.0004]
[1756913163052,1.42332219,112140.0,112130.0,0.0004]
[1756913163265,1.42332184,112140.0,112130.0,0.0004]
[1756913163680,1.45293313,112140.0,112130.0,0.0004]
[1756913163913,1.54484912,112140.0,112130.0,0.0004]
[1756913164166,0.88112502,112140.0,112130.0,0.00145]
[1756913164385,1.51316783,112140.0,112130.0,0.00145]
[1756913164590,1.51515783,112140.0,112130.0,0.0004]
[1756913166212,1.54476912,112140.0,112130.0,0.0004]
[1756913167137,1.56388883,112140.0,112130.0,0.0004]
[1756913168230,1.57218851,112140.0,112130.0,0.0004]
[1756913168671,1.54257722,112140.0,112130.0,0.0004]
[1756913169565,1.54257959,112140.0,112130.0,0.0004]
[1756913170532,0.75833678,112140.0,112130.0,0.0004]
[1756913170780,1.53459951,112140.0,112130.0,0.0004]
[1756913171005,1.53260951,112140.0,112130.0,0.00145]
[1756913171264,0.9004967,112140.0,112130.0,0.00145]
[1756913171496,1.53477951,112140.0,112130.0,0.0004]
[1756913171721,1.53477951,112140.0,112130.0,4.147e-05]
[1756913172159,0.91096063,112140.0,112130.0,4.147e-05]
[1756913172374,1.54308344,112140.0,112130.0,4.147e-05]
[1756913173240,1.54310349,112140.0,112130.0,4.147e-05]
[1756913176433,0.91098068,112140.0,112130.0,4.147e-05]
[1756913176727,1.54310349,112140.0,112130.0,4.147e-05]
[1756913177190,1.57271478,112140.0,112130.0,4.147e-05]
[1756913178084,1.60323766,112140.0,112130.0,4.147e-05]
[1756913179221,1.57271478,112140.0,112130.0,4.147e-05]
[1756913180467,1.42027478,112140.0,112130.0,4.147e-05]
[1756913180805,1.57263478,112140.0,112130.0,4.147e-05]
[1756913181834,1.64123478,112140.0,112130.0,4.147e-05]
[1756913182044,1.00911197,112140.0,112130.0,4.147e-05]
[1756913182247,1.61158349,112140.0,112130.0,4.147e-05]
[1756913182667,0.97946068,112140.0,112130.0,4.147e-05]
[1756913183311,1.61158349,112140.0,112130.0,4.147e-05]